bitfinex-derivatives/quotes_SOLF0:USTF0_20250505
["timestamp","ask_amount","ask_price","bid_price","bid_amount"]
[1746421888455,31.06676082,146.22,146.18,31.8958634]
[1746421888654,6.84,146.19,146.18,31.8958634]
[1746421889453,31.06676082,146.22,146.17,7.97396585]
[1746421889956,37.90546082,146.22,146.17,14.81466585]
[1746421890561,37.90546082,146.22,146.18,6.8404]
[1746421890856,29.03806082,146.22,146.17,7.97396585]
[1746421891255,23.9,146.22,146.19,6.8397]
[1746421891453,23.9,146.22,146.17,7.97396585]
[1746421892156,23.9,146.22,146.15,69.97412679]
[1746421892352,23.9,146.22,146.2,6.8395]
[1746421892553,23.9,146.22,146.16,23.9]
[1746421892960,23.9,146.22,146.2,6.8391]
[1746421893158,23.9,146.22,146.16,23.9]
[1746421893360,37.94356082,146.25,146.16,23.9]
[1746421893561,37.94356082,146.25,146.21,6.8388]
[1746421894660,37.94356082,146.25,146.22,6.8386]
[1746421894962,25.968,146.25,146.22,6.8386]
[1746421895259,23.9,146.25,146.24,6.8377]
[1746421895455,30.7362,146.28,146.2,23.9]
[1746421895666,23.9,146.28,146.2,23.9]
[1746421895961,23.9,146.28,146.21,4.2466]
[1746421896672,23.9,146.28,146.26,6.8364]
[1746421897157,23.9,146.28,146.25,6.8372]
[1746421897760,30.7358,146.28,146.25,6.8372]
[1746421899663,23.9,146.28,146.25,6.8372]
[1746421900262,6.8357,146.29,146.25,6.8372]
[1746421900463,6.836,146.28,146.24,6.8375]
[1746421900663,6.836,146.28,146.21,4.2466]
[1746421902062,6.8355,146.29,146.25,6.8368]
[1746421902259,5.13806082,146.37,146.24,29.01806082]
[1746421902464,23.88,146.34,146.24,29.01806082]
[1746421903167,6.8342,146.32,146.24,29.01806082]
[1746421903357,23.88,146.34,146.28,6.8355]
[1746421904064,6.8343,146.32,146.28,6.8355]
[1746421904460,23.88,146.34,146.22,7.97396585]
[1746421904659,6.8347,146.31,146.22,7.97396585]
[1746421904965,23.88,146.34,146.27,6.8363]
[1746421905162,6.8344,146.31,146.27,6.8363]
[1746421907462,6.8349,146.3,146.27,6.8363]
[1746421907662,23.88,146.34,146.25,23.88]
[1746421907866,5.13806082,146.31,146.25,23.88]
[1746421908266,23.88,146.3,146.25,30.717]
[1746421908568,30.7153,146.3,146.25,30.717]
[1746421909671,6.8354,146.29,146.25,30.717]
[1746421909969,6.8354,146.29,146.25,6.837]
[1746421910368,30.7151,146.3,146.25,6.837]
[1746421910568,30.7151,146.3,146.26,6.8366]
[1746421910772,27.9601,146.3,146.26,6.8366]
[1746421911267,6.8354,146.29,146.25,6.837]
[1746421911468,5.13806082,146.28,146.22,23.88]
[1746421911663,5.13806082,146.28,146.19,7.97396585]
[1746421911868,6.8366,146.27,146.23,6.8379]
[1746421912371,5.13806082,146.25,146.19,31.85396585]
[1746421912875,11.97566082,146.25,146.21,6.8388]
[1746421913067,11.97566082,146.25,146.19,31.85396585]
[1746421913263,11.97566082,146.25,146.19,23.88]
[1746421914173,11.97566082,146.25,146.21,6.8388]
[1746421915472,23.88,146.26,146.19,23.88]
[1746421917076,30.7168,146.26,146.19,23.88]
[1746421917273,23.88,146.26,146.19,23.88]
[1746421918176,6.8373,146.25,146.22,6.8385]
[1746421919578,30.7169,146.26,146.23,6.838]
[1746421920275,23.88,146.26,146.23,6.838]
[1746421920680,23.88,146.29,146.19,23.88]
[1746421920879,30.7154,146.29,146.19,23.88]
[1746421921980,23.88,146.29,146.26,6.8364]
[1746421922281,23.88,146.29,146.19,23.88]
[1746421922674,23.88,146.29,146.19,31.85396585]
[1746421922879,23.88,146.29,146.26,6.8365]
[1746421923476,23.88,146.29,146.23,23.88]
[1746421923682,23.88,146.32,146.23,29.01806082]
[1746421923879,6.8345,146.31,146.28,6.8358]
[1746421924081,23.88,146.32,146.28,6.8358]
[1746421924478,30.7143,146.32,146.28,6.8358]
[1746421925077,6.8344,146.31,146.28,6.8358]
[1746421925384,23.88,146.32,146.3,6.8347]
[1746421925580,4.1881,146.34,146.27,23.88]
[1746421925889,23.88,146.35,146.27,23.88]
[1746421927480,6.8342,146.32,146.27,23.88]
[1746421927680,6.8342,146.32,146.28,6.8355]
[1746421928486,6.8342,146.32,146.29,6.8352]
[1746421932688,23.88,146.35,146.27,23.88]
[1746421933086,8.24287468,146.34,146.24,25.9134]
[1746421933285,6.8352,146.3,146.26,6.8365]
[1746421933988,6.8352,146.3,146.27,6.8362]
[1746421934389,6.8345,146.31,146.24,25.9134]
[1746421934587,4.1134,146.33,146.28,6.8357]
[1746421935690,10.9471,146.33,146.28,6.8357]
[1746421935885,10.9471,146.33,146.29,6.8351]
[1746421939293,6.834,146.32,146.29,6.8351]
[1746421939489,4.1134,146.33,146.27,6.836]
[1746421939685,6.8342,146.32,146.24,25.9134]
[1746421939990,4.1134,146.33,146.29,6.835]
[1746421940291,10.9473,146.33,146.29,6.835]
[1746421941190,6.834,146.32,146.29,6.835]
[1746421942693,6.8345,146.31,146.28,6.8356]
[1746421942888,4.1134,146.33,146.24,25.9134]
[1746421943090,6.8351,146.3,146.26,6.8364]
[1746421943793,6.8351,146.3,146.27,6.8362]
[1746421945995,30.7146,146.31,146.27,6.8362]
[1746421947095,30.7146,146.31,146.28,6.8358]
[1746421947289,23.88,146.31,146.24,23.88]
[1746421947594,23.88,146.31,146.25,2.0905]
[1746421948384,23.88,146.31,146.29,6.8351]
[1746421949093,23.88,146.31,146.24,23.88]
[1746421949693,6.8358,146.29,146.25,6.8369]
[1746421950100,5.15517571,146.3,146.23,6.8379]
[1746421950300,5.15517571,146.27,146.22,7.97396585]
[1746421950493,29.03517571,146.27,146.21,7.97396585]
[1746421950695,6.8375,146.25,146.21,14.81276585]
[1746421952500,6.8377,146.24,146.21,14.81276585]
[1746421952696,6.8377,146.24,146.21,7.97396585]
[1746421953005,6.8385,146.23,146.21,7.97396585]
[1746421953406,23.88,146.27,146.21,7.97396585]
[1746421953598,6.8379,146.24,146.2,6.8395]
[1746421956708,6.8382,146.23,146.19,6.8399]
[1746421956914,23.88,146.27,146.19,6.8399]
[1746421957410,23.88,146.27,146.2,6.8395]
[1746421957712,6.8382,146.23,146.16,25.9096]
[1746421957907,6.8382,146.23,146.19,6.8398]
[1746421958109,23.88,146.27,146.19,6.8398]
[1746421959112,6.8385,146.23,146.19,6.8398]
[1746421962218,6.8386,146.22,146.19,6.8398]
[1746421963018,6.8386,146.22,146.19,6.78376218]
[1746421963413,6.8383,146.23,146.19,6.78376218]
[1746421965121,6.8379,146.24,146.16,25.9096]
[1746421965323,23.88,146.27,146.16,25.9096]
[1746421965620,6.8376,146.25,146.21,6.8388]
[1746421967623,6.8377,146.24,146.21,6.8388]
[1746421968624,6.8377,146.24,146.2,6.8394]
[1746421970530,6.8383,146.23,146.19,6.8398]
[1746421971129,8.25249862,146.26,146.18,6.8405]
[1746421971431,23.94,146.25,146.16,25.9096]
[1746421971624,6.8394,146.21,146.17,6.8406]
[1746421975332,5.16009122,146.2,146.14,2.1262]
[1746421975933,6.8403,146.19,146.15,6.8416]
[1746421976829,6.841,146.17,146.13,30.7826]
[1746421977032,6.841,146.17,146.13,23.94]
[1746421977337,23.94,146.21,146.13,23.94]
[1746421977338,5.16009122,146.2,146.13,23.94]
[1746421977627,6.8408,146.18,146.14,6.8423]
[1746421978533,6.8411,146.17,146.14,6.8423]
[1746421978835,6.8411,146.17,146.13,30.7827]
[1746421980735,6.8411,146.17,146.14,6.8423]
[1746421980927,6.8406,146.18,146.13,23.94]
[1746421981433,6.8406,146.18,146.15,6.8416]
[1746421984235,6.8402,146.19,146.16,6.8413]
[1746421984431,23.94,146.21,146.13,23.94]
[1746421984628,23.94,146.21,146.14,2.1206]
[1746421985035,30.7792,146.21,146.18,6.8402]
[1746421985335,23.94,146.21,146.18,6.8402]
[1746421985634,23.94,146.21,146.14,2.1206]
[1746421985835,5.16009122,146.23,146.18,6.8401]
[1746421986235,6.8391,146.21,146.18,6.8401]
[1746421986937,6.8396,146.2,146.17,6.8408]
[1746421987130,5.16009122,146.23,146.14,2.1206]
[1746421987929,6.8395,146.21,146.17,6.8407]
[1746421988437,6.8396,146.2,146.16,6.8413]
[1746421988737,5.16009122,146.23,146.14,2.1206]
[1746421989235,6.8403,146.19,146.15,6.8418]
[1746421989445,5.16009122,146.2,146.13,55.8358634]
[1746421989633,29.08009122,146.2,146.13,55.8358634]
[1746421989936,29.08009122,146.2,146.14,6.8423]
[1746421990140,29.08009122,146.2,146.13,23.94]
[1746421991339,5.16009122,146.17,146.12,31.8958634]
[1746421992344,5.16009122,146.17,146.11,10.09646585]
[1746421993341,6.842,146.15,146.11,10.09646585]
[1746421993838,6.842,146.15,146.11,16.93976585]
[1746421994041,6.842,146.15,146.11,10.09646585]
[1746421994339,6.8426,146.14,146.11,10.09646585]
[1746421994542,6.8426,146.14,146.11,16.93996585]
[1746421994841,6.8426,146.14,146.11,8.966]
[1746421995035,6.8421,146.15,146.11,8.966]
[1746421995644,6.8421,146.15,146.12,6.8433]
[1746421995941,6.8415,146.16,146.11,2.1225]
[1746421996348,6.8424,146.14,146.11,2.1225]
[1746421996741,29.08009122,146.2,146.11,2.1225]
[1746421996938,6.8419,146.16,146.11,2.1225]
[1746421997345,6.8419,146.16,146.12,6.8432]
[1746421998045,6.8419,146.15,146.12,6.8432]
[1746422001045,29.08009122,146.2,146.11,2.1225]
[1746422001244,6.8426,146.14,146.08,7.97396585]
[1746422001846,6.8421,146.15,146.11,6.8435]
[1746422002349,6.8442,146.11,146.08,7.97396585]
[1746422003445,6.8442,146.11,146.08,14.81906585]
[1746422004552,6.8442,146.11,146.08,6.8451]
[1746422005050,6.8442,146.11,146.07,6.8455]
[1746422005347,23.92,146.12,146.07,6.8455]
[1746422005650,6.8439,146.11,146.07,6.8455]
[1746422006149,23.92,146.12,146.07,6.8455]
[1746422006342,6.8439,146.11,146.07,6.8455]
[1746422006848,6.8442,146.1,146.07,6.8455]
[1746422008657,6.8452,146.08,146.05,6.8465]
[1746422008853,29.08009122,146.12,146.04,2.036]
[1746422009151,6.8455,146.08,146.04,8.8828]
[1746422010450,6.8448,146.09,146.05,6.8465]
[1746422011250,29.08009122,146.12,146.04,2.036]
[1746422011959,6.8444,146.1,146.06,6.8459]
[1746422012156,6.8444,146.1,146.04,2.036]
[1746422012757,6.8453,146.08,146.04,2.036]
[1746422013061,29.08009122,146.12,146.04,2.036]
[1746422013259,6.845,146.09,146.05,6.8463]
[1746422013762,6.8452,146.08,146.05,6.8463]
[1746422014359,6.8457,146.07,146.04,8.8829]
[1746422015464,5.16009122,146.09,146.03,23.92]
[1746422016355,5.16009122,146.09,146.03,30.7674]
[1746422016558,5.16009122,146.09,146.0,26.0095]
[1746422016756,5.16009122,146.06,146.0,26.0095]
[1746422017154,6.8471,146.04,146.01,6.8483]
[1746422017356,5.16009122,146.06,146.01,6.8483]
[1746422017555,5.16009122,146.06,146.0,26.0095]
[1746422018362,6.8468,146.05,146.02,6.8477]
[1746422019163,12.00629122,146.06,146.03,6.8475]
[1746422019457,5.16009122,146.06,146.0,26.0095]
[1746422019666,23.96,146.08,146.0,26.0095]
[1746422020361,30.8055,146.08,146.05,6.8466]
[1746422020561,23.96,146.08,146.0,31.16959122]
[1746422020956,6.8449,146.09,146.05,6.8462]
[1746422021162,23.96,146.11,146.04,23.96]
[1746422021359,23.96,146.11,146.05,23.96]
[1746422021561,30.8041,146.11,146.08,6.8449]
[1746422022159,6.8441,146.11,146.08,6.8449]
[1746422022360,23.96,146.19,146.09,23.96]
[1746422022660,23.96,146.19,146.1,23.96]
[1746422023257,6.8417,146.16,146.1,23.96]
[1746422023766,6.8417,146.16,146.12,6.8431]
[1746422024965,6.8419,146.15,146.12,6.8431]
[1746422025264,6.8419,146.15,146.11,6.8436]
[1746422025466,6.8419,146.15,146.1,23.96]
[1746422026166,6.8419,146.15,146.12,6.8433]
[1746422026771,6.8419,146.15,146.1,23.96]
[1746422028168,6.8419,146.15,146.11,6.8436]
[1746422028469,6.8419,146.15,146.1,23.96]
[1746422030268,6.8416,146.16,146.1,23.96]
[1746422030566,6.8416,146.16,146.12,6.843]
[1746422031669,6.8416,146.16,146.13,6.8428]
[1746422032368,6.8416,146.16,146.12,6.8431]
[1746422033369,6.8416,146.16,146.11,6.8436]
[1746422033671,23.96,146.19,146.1,23.96]
[1746422034271,23.96,146.19,146.1,30.8042]
[1746422034771,6.8423,146.15,146.1,30.8042]
[1746422035371,6.8424,146.14,146.1,30.8042]
[1746422036070,6.842,146.15,146.11,6.8437]
[1746422036273,8.26058361,146.18,146.1,23.96]
[1746422036675,6.8432,146.13,146.1,23.96]
[1746422037075,4.0221,146.17,146.1,23.96]
[1746422037268,4.0221,146.17,146.1,30.8039]
[1746422037669,6.8421,146.15,146.11,6.8437]
[1746422038074,4.0221,146.17,146.1,23.96]
[1746422038272,6.8427,146.14,146.1,23.96]
[1746422038472,4.0221,146.17,146.1,23.96]
[1746422038675,6.8419,146.15,146.1,23.96]
[1746422039272,6.8424,146.14,146.1,23.96]
[1746422039472,4.0221,146.17,146.1,23.96]
[1746422039878,6.8433,146.13,146.1,23.96]
[1746422040075,4.0221,146.17,146.1,23.96]
[1746422042674,6.8431,146.13,146.1,23.96]
[1746422042877,23.98,146.14,146.07,2.0867]
[1746422043268,6.8433,146.12,146.07,8.9321]
[1746422043569,23.98,146.14,146.07,8.9321]
[1746422043765,29.14612406,146.14,146.07,8.9321]
[1746422044176,6.8438,146.11,146.07,8.9321]
[1746422046169,6.8443,146.1,146.07,2.0867]
[1746422047276,6.8447,146.09,146.07,2.0867]
[1746422047769,6.8444,146.1,146.07,2.0867]
[1746422048376,29.14612406,146.14,146.07,2.0867]
[1746422048676,6.8444,146.1,146.07,8.9323]
[1746422049477,6.8444,146.1,146.07,2.0867]
[1746422050775,6.8452,146.08,146.03,73.85781021]
[1746422050979,5.16612406,146.11,146.03,73.85781021]
[1746422051771,23.98,146.1,146.03,73.85781021]
[1746422051977,6.8466,146.05,146.03,73.85781021]
[1746422052178,6.8466,146.05,146.03,65.88384436]
[1746422052576,5.16612406,146.08,146.03,65.88384436]
[1746422052778,5.16612406,146.08,146.02,23.98]
[1746422052973,5.16612406,146.08,146.01,10.02916585]
[1746422053473,5.16612406,146.08,146.01,7.97396585]
[1746422054277,5.16612406,146.08,145.99,32.9261]
[1746422054480,5.16612406,146.08,145.99,26.0771]
[1746422054781,6.8473,146.04,146.0,6.8488]
[1746422055877,5.16612406,146.08,146.0,6.8488]
[1746422056478,6.8473,146.04,146.0,6.8488]
[1746422056675,33.23752406,146.1,145.99,23.98]
[1746422057080,23.98,146.1,146.01,5.16612406]
[1746422057383,23.98,146.1,146.02,2.1162]
[1746422057579,23.98,146.1,146.03,23.98]
[1746422057779,23.98,146.13,146.03,25.9749]
[1746422057980,6.8452,146.08,146.04,2.1208]
[1746422058176,5.16612406,146.11,146.05,6.8463]
[1746422058681,6.845,146.09,146.05,6.8463]
[1746422059084,5.16612406,146.11,146.05,6.8463]
[1746422059678,5.16612406,146.11,146.06,6.846]
[1746422060383,6.845,146.09,146.05,6.8464]
[1746422062085,6.8444,146.1,146.06,6.846]
[1746422062284,6.8444,146.1,146.04,2.1208]
[1746422062785,6.8444,146.1,146.06,6.8457]
[1746422063683,6.8437,146.12,146.04,2.1208]
[1746422063882,23.98,146.16,146.07,23.98]
[1746422064279,23.98,146.16,146.08,1.9601]
[1746422064884,6.8422,146.15,146.11,6.8434]
[1746422065086,28.036,146.19,146.11,23.98]
[1746422065287,6.8413,146.17,146.14,6.8423]
[1746422066090,6.8413,146.17,146.13,6.8427]
[1746422066290,6.8415,146.16,146.13,6.8427]
[1746422066784,6.8415,146.16,146.12,6.8431]
[1746422066986,5.16612406,146.17,146.11,23.98]
[1746422067685,36.29831918,146.19,146.11,23.98]
[1746422068202,6.8426,146.14,146.11,30.8236]
[1746422068389,6.8426,146.14,146.11,23.98]
[1746422069190,6.8429,146.13,146.11,23.98]
[1746422071895,6.8426,146.14,146.11,23.98]
[1746422073695,6.8429,146.13,146.11,23.98]
[1746422073896,36.29831918,146.19,146.11,23.98]
[1746422074297,6.8426,146.14,146.11,23.98]
[1746422074699,6.8426,146.14,146.11,30.8236]
[1746422075096,25.9229,146.19,146.11,23.98]
[1746422075291,25.9229,146.19,146.13,6.8425]
[1746422075497,6.8412,146.17,146.13,6.8425]
[1746422075692,6.8412,146.17,146.11,23.98]
[1746422075897,6.8412,146.17,146.14,6.8423]
[1746422078297,25.9229,146.19,146.11,23.98]
[1746422078898,6.8423,146.15,146.11,30.8235]
[1746422080401,6.8423,146.15,146.12,6.8433]
[1746422081301,25.9229,146.19,146.14,6.8423]
[1746422081498,23.98,146.19,146.14,6.8423]
[1746422082098,6.8407,146.18,146.14,6.8423]
[1746422082800,6.8407,146.18,146.15,6.8419]
[1746422084902,30.8202,146.19,146.16,6.8413]
[1746422085106,6.8402,146.19,146.16,6.8413]
[1746422087103,6.8406,146.18,146.15,6.8417]
[1746422087404,24.22,146.22,146.11,23.98]
[1746422087600,6.8403,146.19,146.11,23.98]
[1746422087992,29.38097911,146.22,146.11,23.98]
[1746422088203,6.8403,146.19,146.15,6.8414]
[1746422090205,6.8403,146.19,146.16,6.8413]
[1746422090405,6.8405,146.18,146.11,23.98]
[1746422091004,6.8405,146.18,146.15,6.8416]
[1746422091205,6.8402,146.19,146.15,6.8416]
[1746422092208,6.8402,146.19,146.16,6.8414]
[1746422093402,6.8407,146.18,146.15,6.8417]
[1746422095908,6.8412,146.17,146.13,6.8424]
[1746422096106,5.16097911,146.19,146.13,6.8424]
[1746422097611,6.8413,146.17,146.13,6.8424]
[1746422097804,5.16097911,146.19,146.13,6.8424]
[1746422098210,6.8413,146.17,146.13,6.8424]
[1746422098509,6.8413,146.17,146.14,6.8423]
[1746422098709,24.22,146.22,146.11,31.95396585]
[1746422098912,6.8402,146.19,146.11,31.95396585]
[1746422099209,24.22,146.22,146.12,5.16097911]
[1746422099710,6.8394,146.21,146.17,6.8405]
[1746422100010,24.22,146.22,146.15,24.22]
[1746422100211,6.8391,146.21,146.18,6.8401]
[1746422100507,24.22,146.22,146.18,6.8401]
[1746422100709,31.059,146.22,146.18,6.8401]
[1746422100912,24.22,146.22,146.18,6.8401]
[1746422101604,6.8393,146.21,146.18,6.8401]
[1746422102510,24.22,146.22,146.15,24.22]
[1746422103306,24.22,146.22,146.15,31.0616]
[1746422105114,24.22,146.22,146.16,6.8412]
[1746422106214,6.8398,146.2,146.16,6.8412]
[1746422106607,24.22,146.22,146.15,24.22]
[1746422108017,31.0589,146.22,146.15,24.22]
[1746422108819,31.0589,146.22,146.18,6.8402]
[1746422111022,6.8389,146.22,146.18,6.8402]
[1746422111622,6.8392,146.21,146.18,6.8402]
[1746422113532,6.8396,146.2,146.17,6.8408]
[1746422114929,6.84,146.19,146.16,6.8413]
[1746422119241,6.8398,146.2,146.16,6.8413]
[1746422120138,6.8401,146.19,146.16,6.8413]
[1746422120434,24.08,146.22,146.17,6.8409]
[1746422122244,6.8398,146.2,146.17,6.8409]
[1746422122745,6.8401,146.19,146.16,6.8413]
[1746422123039,6.8401,146.19,146.15,24.22]
[1746422123244,24.08,146.22,146.15,24.22]
[1746422123545,24.08,146.22,146.14,38.7379634]
[1746422123846,6.8408,146.18,146.14,38.7379634]
[1746422124748,6.8408,146.18,146.14,6.8421]
[1746422124948,6.841,146.17,146.14,6.8421]
[1746422125247,5.16097911,146.17,146.12,38.7388634]
[1746422125744,7.28457911,146.17,146.12,38.7388634]
[1746422126245,6.8422,146.15,146.12,38.7388634]
[1746422126543,6.8422,146.15,146.12,6.843]
[1746422126744,6.8424,146.14,146.11,6.8436]
[1746422126944,9.29607911,146.17,146.09,567.9652]
[1746422127646,6.8419,146.15,146.12,6.8431]
[1746422127942,9.29607911,146.17,146.12,6.8431]
[1746422128142,2.1236,146.17,146.09,567.9652]
[1746422128343,6.8417,146.16,146.13,6.8428]
[1746422134249,24.08,146.18,146.14,6.8419]
[1746422134445,24.08,146.18,146.09,26.2052]
[1746422134945,6.8408,146.18,146.09,26.2052]
[1746422136350,23.94,146.21,146.11,5.16097911]
[1746422136539,23.94,146.21,146.17,6.8407]
[1746422136739,23.94,146.21,146.15,23.94]
[1746422136943,3.9628,146.22,146.15,23.94]
[1746422137450,6.8394,146.21,146.17,6.8409]
[1746422138049,6.8397,146.2,146.17,6.8409]
[1746422143555,6.8397,146.2,146.16,6.8411]
[1746422144955,6.8397,146.2,146.17,6.8409]
[1746422146557,6.8393,146.21,146.17,6.8409]
[1746422146852,6.8393,146.21,146.18,6.8404]
[1746422147059,6.8388,146.22,146.15,23.94]
[1746422147453,6.8388,146.22,146.18,6.8401]
[1746422147650,6.8398,146.2,146.15,23.94]
[1746422148156,6.8398,146.2,146.17,6.8409]
[1746422149455,6.8393,146.21,146.18,6.8404]
[1746422149655,6.8393,146.21,146.15,23.94]
[1746422149960,6.8393,146.21,146.17,6.8407]
[1746422150759,29.10097911,146.23,146.16,6.8413]
[1746422151359,30.7782,146.23,146.19,6.8397]
[1746422154161,6.8388,146.22,146.19,6.8397]
[1746422155161,6.8388,146.22,146.18,6.8403]
[1746422156662,6.8388,146.22,146.19,6.84]
[1746422163265,23.94,146.23,146.17,23.92]
[1746422163769,23.94,146.23,146.17,30.7607]
[1746422164268,6.8397,146.2,146.17,30.7607]
[1746422165967,6.8393,146.21,146.18,6.8405]
[1746422166366,23.94,146.23,146.17,23.92]
[1746422166668,6.8379,146.24,146.17,23.92]
[1746422167168,6.8379,146.24,146.2,6.8393]
[1746422167370,6.8383,146.23,146.2,6.8393]
[1746422168671,6.8389,146.22,146.19,6.8399]
[1746422168871,6.8389,146.22,146.17,23.92]
[1746422169373,6.8389,146.22,146.18,6.84]
[1746422170069,25.9333,146.26,146.17,31.89396585]
[1746422170273,25.9333,146.26,146.17,33.91516585]
[1746422170274,23.92,146.26,146.17,33.91516585]
[1746422170874,6.8378,146.24,146.17,33.91516585]
[1746422171075,23.92,146.26,146.17,33.91516585]
[1746422171571,23.92,146.26,146.18,5.61192564]
[1746422171773,6.8379,146.24,146.2,6.8392]
[1746422171972,6.8379,146.24,146.18,5.61192564]
[1746422172275,6.8379,146.24,146.2,6.8392]
[1746422172675,6.8383,146.23,146.2,6.8392]
[1746422172975,23.92,146.26,146.21,6.839]
[1746422173477,6.8379,146.24,146.21,6.839]
[1746422173673,23.92,146.26,146.21,6.839]
[1746422173973,30.7569,146.26,146.18,5.61192564]
[1746422174174,1.9728,146.28,146.19,2.0228]
[1746422174877,6.8366,146.27,146.23,6.8381]
[1746422185487,1.9728,146.28,146.23,6.8381]
[1746422185692,6.8368,146.26,146.23,6.8381]
[1746422190491,6.8365,146.27,146.23,6.8378]
[1746422191200,6.8368,146.26,146.23,6.8378]
[1746422192099,6.8365,146.27,146.23,6.8378]
[1746422193000,6.8359,146.28,146.25,6.837]
[1746422193199,7.25717911,146.31,146.22,23.92]
[1746422193589,2.0962,146.31,146.22,25.9873]
[1746422193796,26.062,146.32,146.22,25.9873]
[1746422194001,6.8346,146.31,146.27,6.8359]
[1746422196602,6.8346,146.31,146.28,6.8357]
[1746422196793,6.8346,146.31,146.26,23.92]
[1746422196794,6.834,146.32,146.26,23.92]
[1746422197196,6.834,146.32,146.29,6.8353]
[1746422197496,6.8335,146.33,146.29,6.8353]
[1746422197798,6.8335,146.33,146.26,23.92]
[1746422197799,5.16097911,146.37,146.3,23.92]
[1746422198001,6.8326,146.35,146.31,23.92]
[1746422198299,6.8326,146.35,146.31,6.8341]
[1746422201397,6.8321,146.36,146.32,6.8336]
[1746422201802,6.8321,146.36,146.3,23.92]
[1746422203200,6.8321,146.36,146.33,6.8334]
[1746422203397,6.8318,146.37,146.33,6.8334]
[1746422203894,6.8313,146.38,146.34,6.8329]
[1746422204098,4.0978,146.39,146.31,4.2117]
[1746422205207,6.8316,146.37,146.33,6.8331]
[1746422208108,6.8316,146.37,146.34,6.833]
[1746422208309,6.8316,146.37,146.31,4.2117]
[1746422209208,6.8313,146.38,146.31,4.2117]
[1746422209709,6.8313,146.38,146.34,6.8327]
[1746422209904,23.9,146.41,146.34,23.9]
[1746422210302,23.9,146.41,146.36,6.8318]
[1746422210602,6.8305,146.4,146.36,6.8318]
[1746422211314,6.8305,146.4,146.34,23.9]
[1746422211315,6.8305,146.4,146.37,6.8316]
[1746422211607,6.8299,146.41,146.37,6.8316]
[1746422212812,6.8299,146.41,146.38,6.831]
[1746422213013,3.961,146.43,146.34,23.9]
[1746422213213,1.9563,146.43,146.34,23.9]
[1746422213406,29.06097911,146.44,146.39,6.8303]
[1746422213612,6.8292,146.43,146.39,30.7303]
[1746422217114,6.8292,146.43,146.4,6.8302]
[1746422217316,6.8284,146.44,146.4,6.8302]
[1746422220020,6.8289,146.43,146.4,6.8302]
[1746422225022,33.00107911,146.47,146.42,6.8292]
[1746422225223,27.8401,146.47,146.42,6.8292]
[1746422226925,6.8282,146.45,146.41,6.8295]
[1746422227821,23.88,146.5,146.39,23.9]
[1746422228021,29.8919,146.5,146.39,23.9]
[1746422228418,6.8277,146.46,146.42,6.8291]
[1746422229924,6.8277,146.46,146.43,6.8288]
[1746422231625,6.8279,146.45,146.42,6.8291]
[1746422231826,29.8919,146.5,146.39,23.9]
[1746422232026,5.16097911,146.48,146.39,23.9]
[1746422232227,5.16097911,146.48,146.41,6.8297]
[1746422232228,6.8283,146.45,146.41,6.8297]
[1746422232428,5.16097911,146.48,146.41,6.8297]
[1746422234226,6.8283,146.45,146.41,6.8297]
[1746422234427,5.16097911,146.48,146.41,6.8297]
[1746422234828,5.16097911,146.48,146.39,30.7304]